fUST/lending_fUST_20240813
["ID","MTS","AMOUNT","RATE_DAILY","PERIOD"]
[334716230,1723500642017,-5972.52,0.00014428,2]
[334716231,1723500642027,-505.18072017,0.00014428,2]
[334716232,1723500642036,-500.0,0.00014428,2]
[334716233,1723500642045,-500.0,0.00014428,2]
[334716234,1723500642055,-568.31,0.00014428,2]
[334716235,1723500642065,-1178.48,0.00014428,2]
[334716236,1723500642074,-678.97,0.00014428,2]
[334716237,1723500642086,-1343.82,0.00014428,2]
[334716238,1723500642095,-1258.86,0.00014428,2]
[334716239,1723500642105,-528.13,0.00014428,2]
[334716240,1723500642114,-758.8,0.00014428,2]
[334716241,1723500642123,-500.0,0.00014428,2]
[334716242,1723500642133,-500.0,0.00014428,2]
[334716243,1723500642143,-1901.36,0.00014428,2]
[334716244,1723500642153,-500.0,0.00014434,2]
[334716245,1723500642165,-500.0,0.00014435,2]
[334716246,1723500642176,-500.0,0.00014435,2]
[334716247,1723500642185,-500.0,0.00014435,2]
[334716248,1723500642195,-686.22,0.00014435,2]
[334716249,1723500642206,-500.0,0.00014435,2]
[334716250,1723500642216,-500.0,0.00014435,2]
[334716251,1723500642227,-500.0,0.00014435,2]
[334716252,1723500642238,-500.0,0.00014435,2]
[334716253,1723500642248,-500.0,0.00014435,2]
[334716254,1723500642258,-500.0,0.00014435,2]
[334716255,1723500642267,-924.93,0.00014435,2]
[334716256,1723500642277,-500.0,0.00014435,2]
[334716257,1723500642286,-500.0,0.00014435,2]
[334716258,1723500642295,-500.0,0.00014435,2]
[334716259,1723500642304,-500.0,0.00014435,2]
[334716260,1723500642314,-503.17224724,0.00014435,2]
[334716261,1723500642323,-500.0,0.00014435,2]
[334716262,1723500642332,-500.0,0.00014435,2]
[334716263,1723500642341,-832.46,0.00014435,2]
[334716264,1723500642353,-504.70552119,0.00014435,2]
[334716265,1723500642366,-500.0,0.00014435,2]
[334716266,1723500642376,-500.0,0.00014435,2]
[334716267,1723500642386,-514.33,0.00014435,2]
[334716268,1723500642396,-500.0,0.00014435,2]
[334716269,1723500642406,-500.0,0.00014435,2]
[334716270,1723500642415,-469.7200934,0.00014435,2]
[334716271,1723500642426,-500.0,0.00014435,2]
[334716272,1723500642435,-500.0,0.00014435,2]
[334716273,1723500642445,-500.0,0.00014435,2]
[334716274,1723500642453,-500.0,0.00014435,2]
[334716275,1723500642463,-500.0,0.00014435,2]
[334716276,1723500642472,-500.0,0.00014435,2]
[334716277,1723500642481,-500.0,0.00014435,2]
[334716278,1723500642490,-500.0,0.00014435,2]
[334716279,1723500642500,-509.47072103,0.00014435,2]
[334716280,1723500642510,-503.32399465,0.00014435,2]
[334716281,1723500642519,-503.68425534,0.00014435,2]
[334716282,1723500642528,-500.0,0.00014435,2]
[334716283,1723500642537,-500.0,0.00014435,2]
[334716284,1723500642547,-500.0,0.00014435,2]
[334716285,1723500642558,-500.0,0.00014435,2]
[334716286,1723500642568,-500.0,0.00014435,2]
[334716288,1723500642578,-521.83628415,0.00014435,2]
[334716289,1723500642589,-500.0,0.00014435,2]
[334716290,1723500642599,-500.0,0.00014435,2]
[334716291,1723500642609,-500.0,0.00014435,2]
[334716292,1723500642619,-500.0,0.00014435,2]
[334716293,1723500642629,-500.0,0.00014435,2]
[334716294,1723500642638,-538.62229691,0.00014435,2]
[334716295,1723500642648,-505.1534437,0.00014435,2]
[334716296,1723500642657,-167.83682051,0.00014435,2]
[334716297,1723500642667,-503.80031897,0.00014435,2]
[334716298,1723500642676,-500.0,0.00014435,2]
[334716299,1723500642685,-500.0,0.00014435,2]
[334716300,1723500642694,-503.24843815,0.00014435,2]
[334716301,1723500642703,-500.0,0.00014435,2]
[334716302,1723500642713,-500.0,0.00014435,2]
[334716303,1723500642723,-500.73988775,0.00014435,2]
[334716304,1723500642735,-500.0,0.00014435,2]
[334716305,1723500642746,-500.0,0.00014435,2]
[334716306,1723500642758,-500.0,0.00014435,2]
[334716307,1723500642767,-500.0,0.00014435,2]
[334716308,1723500642777,-502.78650335,0.00014435,2]
[334716309,1723500642786,-500.0,0.00014435,2]
[334716310,1723500642795,-500.0,0.00014435,2]
[334716311,1723500642804,-500.0,0.00014435,2]
[334716312,1723500642814,-500.0,0.00014435,2]
[334716313,1723500642825,-500.0,0.00014435,2]
[334716314,1723500642836,-505.16646545,0.00014435,2]
[334716315,1723500642845,-500.0,0.00014435,2]
[334716316,1723500642855,-500.0,0.00014435,2]
[334716317,1723500642864,-500.0,0.00014435,2]
[334716318,1723500642874,-500.0,0.00014435,2]
[334716319,1723500642884,-504.83163467,0.00014435,2]
[334716320,1723500642893,-688.08,0.00014435,2]
[334716321,1723500642902,-2419.67,0.00014435,2]
[334716322,1723500642912,-500.0,0.00014435,2]
[334716323,1723500642921,-500.0,0.00014435,2]
[334716324,1723500642931,-506.13000869,0.00014435,2]
[334716325,1723500642940,-500.0,0.00014435,2]
[334716326,1723500642950,-500.0,0.00014435,2]
[334716327,1723500642961,-503.04790354,0.00014435,2]
[334716328,1723500642971,-506.28635247,0.00014435,2]
[334716329,1723500642981,-500.0,0.00014435,2]
[334716330,1723500642991,-500.001487,0.00014435,2]
[334716331,1723500643000,-500.0,0.00014435,2]
[334716332,1723500643010,-532.92,0.00014435,2]
[334716333,1723500643019,-230.78518534,0.00014435,2]
[334716334,1723500643029,-500.0,0.00014435,2]
[334716335,1723500643038,-500.0,0.00014435,2]
[334716336,1723500643048,-500.0,0.00014435,2]
[334716337,1723500643058,-520.15882396,0.00014435,2]
[334716338,1723500643068,-225.25171686,0.00014435,2]
[334716340,1723500643077,-595.26,0.00014435,2]
[334716342,1723500643092,-505.64252159,0.00014435,2]
[334716343,1723500643102,-500.0,0.00014435,2]
[334716345,1723500643111,-500.0,0.00014435,2]
[334716346,1723500643120,-502.64746291,0.00014435,2]
[334716347,1723500643130,-509.53757874,0.00014435,2]
[334716348,1723500643140,-279.59967043,0.00014435,2]
[334716349,1723500643149,-505.37416633,0.00014435,2]
[334716350,1723500643160,-500.0,0.00014435,2]
[334716351,1723500643170,-500.0,0.00014435,2]
[334716352,1723500643179,-500.0,0.00014435,2]
[334716353,1723500643189,-500.0,0.00014435,2]
[334716354,1723500643199,-500.0,0.00014435,2]
[334716355,1723500643208,-500.0,0.00014435,2]
[334716356,1723500643218,-500.0,0.00014435,2]
[334716357,1723500643227,-506.51584812,0.00014435,2]
[334716358,1723500643236,-503.10663543,0.00014435,2]
[334716359,1723500643246,-503.23853271,0.00014435,2]
[334716360,1723500643256,-505.58590369,0.00014435,2]
[334716361,1723500643266,-500.0,0.00014435,2]
[334716362,1723500643276,-282.70644405,0.00014435,2]
[334716363,1723500643286,-502.41031601,0.00014435,2]
[334716364,1723500643296,-500.0,0.00014437,2]
[334716365,1723500643306,-5322.59176007,0.00014464,2]
[334716366,1723500643316,-500.0,0.00014496,2]
[334716367,1723500643326,-500.0,0.00014496,2]
[334716368,1723500643337,-500.0,0.00014496,2]
[334716369,1723500643347,-500.0,0.00014497,2]
[334716370,1723500643357,-500.0,0.00014497,2]
[334716371,1723500643368,-500.0,0.00014497,2]
[334716372,1723500643378,-150.112233,0.000145,2]
[334716373,1723500643388,-297.51445606,0.00014506,2]
[334716374,1723500643398,-500.0,0.00014506,2]
[334716375,1723500643542,-500.0,0.00014506,2]
[334716376,1723500643552,-301.74654116,0.00014507,2]
[334716377,1723500643563,-505.65202889,0.00014507,2]
[334716378,1723500643572,-500.0,0.00014507,2]
[334716379,1723500643582,-502.21590744,0.00014507,2]
[334716380,1723500643594,-500.0,0.00014507,2]
[334716381,1723500643605,-500.0,0.00014507,2]
[334716382,1723500643615,-629.27268015,0.00014507,2]
[334716383,1723500643626,-500.0,0.00014507,2]
[334716384,1723500643635,-500.0,0.00014507,2]
[334716385,1723500643646,-500.0,0.00014507,2]
[334716386,1723500643657,-896.83,0.00014507,2]
[334716387,1723500643666,-1060.71,0.00014507,2]
[334716388,1723500643676,-501.49390567,0.00014507,2]
[334716390,1723500643686,-500.0,0.00014507,2]
[334716392,1723500643697,-325.65215929,0.00014507,2]
[334716394,1723500643707,-505.39360485,0.00014507,2]
[334716396,1723500643720,-507.27813526,0.00014507,2]
[334716398,1723500643732,-500.0,0.00014507,2]
[334716399,1723500643743,-500.0,0.00014507,2]
[334716401,1723500643753,-500.0,0.00014507,2]
[334716402,1723500643764,-500.0,0.00014507,2]
[334716404,1723500643774,-500.0,0.00014507,2]
[334716406,1723500643783,-500.0,0.00014507,2]
[334716407,1723500643793,-601.2,0.00014507,2]
[334716408,1723500643802,-151.0,0.00014507,2]
[334716409,1723500643812,-151.0,0.00014507,2]
[334716410,1723500643822,-221.775063,0.00014507,2]
[334716411,1723500643831,-260.022171,0.00014507,2]
[334716412,1723500643841,-260.022171,0.00014507,2]
[334716413,1723500643851,-388.73104,0.00014507,2]
[334716414,1723500643861,-388.73104,0.00014507,2]
[334716415,1723500643871,-171.272307,0.00014507,2]
[334716416,1723500643880,-287.283186,0.00014507,2]
[334716417,1723500643890,-151.0,0.00014507,2]
[334716418,1723500643899,-151.0,0.00014507,2]
[334716419,1723500643909,-180.122196,0.00014507,2]
[334716420,1723500643918,-180.122196,0.00014507,2]
[334716421,1723500643927,-371.445973,0.00014507,2]
[334716422,1723500643937,-371.445973,0.00014507,2]
[334716423,1723500643947,-151.0,0.00014507,2]
[334716424,1723500643956,-151.0,0.00014507,2]
[334716425,1723500643967,-151.0,0.00014507,2]
[334716426,1723500643976,-151.0,0.00014507,2]
[334716427,1723500643985,-500.0,0.00014515,2]
[334716428,1723500643995,-500.0,0.00014515,2]
[334716429,1723500644004,-512.17168616,0.00014516,2]
[334716430,1723500644014,-151.0,0.00014661,2]
[334716431,1723500644024,-151.0,0.00014661,2]
[334716432,1723500644034,-151.0,0.00014661,2]
[334716433,1723500644044,-313.882869,0.00014661,2]
[334716434,1723500644053,-313.882869,0.00014661,2]
[334716435,1723500644064,-614.096013,0.00014661,2]
[334716436,1723500644074,-614.096013,0.00014661,2]
[334716437,1723500644089,-507.254082,0.00014661,2]
[334716438,1723500644099,-507.254082,0.00014661,2]
[334716439,1723500644109,-151.0,0.00014661,2]
[334716440,1723500644118,-151.0,0.00014661,2]
[334716441,1723500644127,-151.0,0.00014661,2]
[334716442,1723500644137,-301.785712,0.00014661,2]
[334716443,1723500644146,-301.785712,0.00014661,2]
[334716444,1723500644156,-151.0,0.00014661,2]
[334716445,1723500644166,-151.0,0.00014661,2]
[334716446,1723500644175,-500.0,0.00014661,2]
[334716447,1723500644185,-500.0,0.00014661,2]
[334716448,1723500644195,-500.0,0.00014661,2]
[334716449,1723500644204,-1225.62,0.00014681,2]
[334716450,1723500644214,-748.2,0.00014681,2]
[334716451,1723500644224,-500.0,0.0001469,2]
[334716452,1723500644234,-5238.95624179,0.00014691,2]
[334716453,1723500644244,-500.0,0.00014691,2]
[334716454,1723500644253,-1914.43,0.00014691,2]
[334716455,1723500644263,-500.0,0.00014691,2]
[334716456,1723500644273,-618.51,0.00014691,2]
[334716457,1723500644283,-7583.67,0.00014691,2]
[334716458,1723500644293,-500.0,0.00014691,2]
[334716459,1723500644302,-530.14742153,0.00014691,2]
[334716460,1723500644312,-842.55,0.00014691,2]
[334716461,1723500644322,-1375.24,0.00014691,2]
[334716462,1723500644331,-151.0,0.00014699,2]
[334716463,1723500644348,-260.022171,0.00014699,2]
[334716464,1723500644356,-260.022171,0.00014699,2]
[334716465,1723500644365,-388.73104,0.00014699,2]
[334716466,1723500644374,-388.73104,0.00014699,2]
[334716467,1723500644383,-180.122196,0.00014699,2]
[334716468,1723500644392,-180.122196,0.00014699,2]
[334716469,1723500644401,-153.0,0.000147,2]
[334716470,1723500644410,-500.0,0.000147,2]
[334716471,1723500644418,-500.0,0.000147,2]
[334716472,1723500644428,-500.0,0.000147,2]
[334716473,1723500644437,-500.0,0.000147,2]
[334716474,1723500644447,-681.21,0.000147,2]
[334716475,1723500644457,-226.02807599,0.000147,2]
[334716476,1723500644467,-500.0,0.000147,2]
[334716477,1723500644477,-609.69,0.000147,2]
[334716478,1723500644488,-740.88,0.000147,2]
[334716479,1723500644498,-578.96,0.000147,2]
[334716480,1723500644508,-528.54547554,0.000147,2]
[334716481,1723500644518,-500.0,0.000147,2]
[334716482,1723500644527,-249.8513056,0.000147,2]
[334716483,1723500644537,-153.6145265,0.000147,2]
[334716484,1723500644546,-500.0,0.000147,2]
[334716485,1723500644556,-500.0,0.000147,2]
[334716486,1723500644565,-500.0,0.000147,2]
[334716487,1723500644575,-500.0,0.000147,2]
[334716488,1723500644585,-884.05,0.000147,2]
[334716489,1723500644595,-500.0,0.000147,2]
[334716490,1723500644604,-500.0,0.000147,2]
[334716491,1723500644614,-500.0,0.000147,2]
[334716492,1723500644624,-500.0,0.000147,2]
[334716493,1723500644633,-500.0,0.000147,2]
[334716494,1723500644643,-500.0,0.000147,2]
[334716495,1723500644653,-500.0,0.000147,2]
[334716496,1723500644663,-675.05,0.000147,2]
[334716497,1723500644672,-153.0,0.000147,2]
[334716498,1723500644682,-500.0,0.000147,2]
[334716499,1723500644692,-8156.52,0.000147,2]
[334716500,1723500644701,-633.27062661,0.000147,2]
[334716501,1723500644711,-538.49,0.000147,2]
[334716502,1723500644720,-2483.89,0.000147,2]
[334716503,1723500644729,-779.69,0.000147,2]
[334716504,1723500644739,-500.0,0.000147,2]
[334716505,1723500644749,-1598.76,0.000147,2]
[334716506,1723500644759,-913.9,0.000147,2]
[334716507,1723500644768,-245.18889,0.000147,2]
[334716508,1723500644778,-1393.32,0.000147,2]
[334716509,1723500644787,-874.3,0.000147,2]
[334716510,1723500644797,-1182.83,0.000147,2]
[334716511,1723500644806,-500.0,0.000147,2]
[334716512,1723500644816,-500.0,0.000147,2]
[334716513,1723500644825,-151.0,0.000147,2]
[334716514,1723500644834,-500.0,0.000147,2]
[334716515,1723500644845,-153.0,0.000147,2]
[334716516,1723500644854,-976.2,0.000147,2]
[334716517,1723500644864,-500.0,0.000147,2]
[334716518,1723500644873,-500.0,0.000147,2]
[334716519,1723500644882,-1484.53,0.000147,2]
[334716520,1723500644891,-4438.87,0.000147,2]
[334716521,1723500644901,-500.0,0.000147,2]
[334716522,1723500644910,-1378.66,0.000147,2]
[334716523,1723500644920,-1166.27,0.000147,2]
[334716524,1723500644929,-848.12,0.000147,2]
[334716525,1723500644938,-4426.96,0.000147,2]
[334716526,1723500644948,-1211.79,0.000147,2]
[334716527,1723500644957,-500.0,0.000147,2]
[334716528,1723500644966,-500.0,0.000147,2]
[334716529,1723500644976,-500.0,0.000147,2]
[334716530,1723500644985,-1545.32,0.000147,2]
[334716531,1723500644995,-864.87,0.000147,2]
[334716532,1723500645004,-500.0,0.000147,2]
[334716533,1723500645014,-153.0,0.000147,2]
[334716534,1723500645023,-877.3,0.000147,2]
[334716535,1723500645032,-1474.26,0.000147,2]
[334716536,1723500645042,-500.0,0.000147,2]
[334716537,1723500645051,-151.0,0.000147,2]
[334716538,1723500645062,-4170.09,0.000147,2]
[334716539,1723500645071,-500.0,0.000147,2]
[334716540,1723500645082,-500.0,0.000147,2]
[334716541,1723500645097,-500.0,0.000147,2]
[334716542,1723500645106,-151.0,0.000147,2]
[334716543,1723500645115,-314.10879715,0.000147,2]
[334716544,1723500645124,-600.84,0.000147,2]
[334716545,1723500645133,-153.0,0.000147,2]
[334716546,1723500645142,-670.77,0.000147,2]
[334716547,1723500645151,-500.0,0.000147,2]
[334716548,1723500645160,-1546.52,0.000147,2]
[334716549,1723500645170,-500.0,0.000147,2]
[334716550,1723500645178,-500.0,0.000147,2]
[334716551,1723500645187,-565.80287964,0.000147,2]
[334716552,1723500645197,-371.445973,0.000147,2]
[334716553,1723500645206,-746.78,0.000147,2]
[334716554,1723500645215,-371.445973,0.000147,2]
[334716555,1723500645224,-500.0,0.000147,2]
[334716556,1723500645233,-500.0,0.000147,2]
[334716557,1723500645243,-913.2,0.000147,2]
[334716558,1723500645252,-1626.19,0.000147,2]
[334716559,1723500645261,-153.0,0.000147,2]
[334716560,1723500645271,-500.0,0.000147,2]
[334716561,1723500645280,-1428.6,0.000147,2]
[334716562,1723500645289,-722.08,0.000147,2]
[334716563,1723500645298,-500.0,0.000147,2]
[334716564,1723500645307,-151.0,0.000147,2]
[334716565,1723500645316,-500.0,0.000147,2]
[334716566,1723500645326,-500.0,0.000147,2]
[334716567,1723500645335,-1058.05,0.000147,2]
[334716568,1723500645345,-822.45,0.000147,2]
[334716569,1723500645354,-308.1506605,0.000147,2]
[334716570,1723500645363,-153.0,0.000147,2]
[334716571,1723500645373,-500.0,0.000147,2]
[334716572,1723500645382,-500.0,0.000147,2]
[334716573,1723500645391,-151.0,0.000147,2]
[334716574,1723500645400,-151.0,0.000147,2]
[334716575,1723500645410,-151.0,0.000147,2]
[334716576,1723500645419,-500.0,0.000147,2]
[334716577,1723500645428,-151.0,0.000147,2]
[334716578,1723500645437,-500.0,0.000147,2]
[334716579,1723500645446,-585.53,0.00014701,2]
[334716580,1723500645455,-2367.34,0.00014701,2]
[334716581,1723500645464,-3448.12,0.00014701,2]
[334716582,1723500645473,-500.0,0.00014701,2]
[334716583,1723500645482,-500.0,0.00014701,2]
[334716584,1723500645492,-1128.85,0.00014701,2]
[334716585,1723500645503,-500.0,0.00014701,2]
[334716586,1723500645517,-500.0,0.00014701,2]
[334716587,1723500645528,-548.42,0.00014701,2]
[334716588,1723500645539,-554.41,0.00014701,2]
[334716589,1723500645549,-500.0,0.00014701,2]
[334716590,1723500645560,-1080.33,0.00014701,2]
[334716591,1723500645571,-2063.03,0.00014701,2]
[334716592,1723500645580,-3374.0,0.00014701,2]
[334716593,1723500645592,-500.0,0.00014701,2]
[334716594,1723500645607,-500.0,0.00014701,2]
[334716595,1723500645616,-1547.53,0.00014701,2]
[334716596,1723500645625,-1055.27,0.00014701,2]
[334716597,1723500645634,-500.0,0.00014701,2]
[334716598,1723500645643,-741.62,0.00014702,2]
[334716599,1723500645652,-635.01,0.00014702,2]
[334716600,1723500645661,-500.0,0.00014702,2]
[334716601,1723500645670,-500.0,0.00014702,2]
[334716602,1723500645680,-500.0,0.00014702,2]
[334716603,1723500645689,-500.0,0.00014702,2]
[334716604,1723500645698,-501.73,0.00014702,2]
[334716605,1723500645708,-642.91,0.00014702,2]
[334716606,1723500645718,-636.52,0.00014702,2]
[334716607,1723500645728,-561.42,0.00014702,2]
[334716608,1723500645737,-151.0,0.00014702,2]
[334716609,1723500645748,-500.0,0.00014702,2]
[334716610,1723500645759,-500.0,0.00014702,2]
[334716611,1723500645769,-500.0,0.00014702,2]
[334716612,1723500645780,-156.180285,0.00014702,2]
[334716613,1723500645790,-966.19,0.00014702,2]
[334716614,1723500645800,-151.0,0.00014702,2]
[334716615,1723500645809,-151.0,0.00014702,2]
[334716616,1723500645819,-500.0,0.00014702,2]
[334716617,1723500645830,-500.0,0.00014702,2]
[334716618,1723500645839,-313.882869,0.00014702,2]
[334716619,1723500645851,-313.882869,0.00014702,2]
[334716620,1723500645863,-500.0,0.00014702,2]
[334716621,1723500645874,-614.096013,0.00014702,2]
[334716622,1723500645885,-500.0,0.00014702,2]
[334716623,1723500645895,-614.096013,0.00014702,2]
[334716624,1723500645906,-500.0,0.00014702,2]
[334716625,1723500645916,-500.0,0.00014702,2]
[334716626,1723500645926,-500.0,0.00014702,2]
[334716627,1723500645935,-507.254082,0.00014702,2]
[334716628,1723500645945,-507.254082,0.00014702,2]
[334716629,1723500645957,-151.0,0.00014702,2]
[334716630,1723500645967,-512.58,0.00014702,2]
[334716631,1723500645976,-151.0,0.00014702,2]
[334716632,1723500645985,-151.0,0.00014702,2]
[334716633,1723500645996,-652.33,0.00014702,2]
[334716634,1723500646007,-500.0,0.00014702,2]
[334716635,1723500646018,-301.785712,0.00014702,2]
[334716636,1723500646030,-1021.33,0.00014702,2]
[334716637,1723500646042,-301.785712,0.00014702,2]
[334716638,1723500646053,-1001.61,0.00014702,2]
[334716639,1723500646064,-500.0,0.00014702,2]
[334716640,1723500646073,-1122.4,0.00014702,2]
[334716641,1723500646084,-1290.97,0.00014702,2]
[334716642,1723500646095,-5972.52,0.00014702,2]
[334716643,1723500646106,-500.0,0.00014702,2]
[334716644,1723500646116,-500.0,0.00014702,2]
[334716645,1723500646125,-568.31,0.00014702,2]
[334716646,1723500646136,-1178.48,0.00014702,2]
[334716647,1723500646146,-678.97,0.00014702,2]
[334716648,1723500646157,-1343.82,0.00014702,2]
[334716649,1723500646166,-1258.86,0.00014702,2]
[334716650,1723500646176,-528.13,0.00014702,2]
[334716651,1723500646186,-758.8,0.00014702,2]
[334716652,1723500646195,-500.0,0.00014702,2]
[334716653,1723500646205,-500.0,0.00014702,2]
[334716654,1723500646215,-1901.36,0.00014702,2]
[334716655,1723500646225,-500.0,0.00014709,2]
[334716656,1723500646235,-334.51810315,0.00014709,2]
[334716657,1723500646245,-686.22,0.00014709,2]
[334716658,1723500646254,-500.0,0.00014709,2]
[334716659,1723500646265,-500.0,0.00014709,2]
[334716660,1723500646274,-500.0,0.00014709,2]
[334716661,1723500646284,-500.0,0.00014709,2]
[334716662,1723500646294,-500.0,0.00014709,2]
[334716663,1723500646304,-924.93,0.00014709,2]
[334716665,1723500646314,-500.0,0.00014709,2]
[334716666,1723500646323,-500.0,0.00014709,2]
[334716667,1723500646333,-500.0,0.00014709,2]
[334716668,1723500646342,-564.98108192,0.00014709,2]
[334716669,1723500646351,-500.0,0.00014709,2]
[334716670,1723500646360,-832.46,0.00014709,2]
[334716671,1723500646370,-530.34207039,0.00014709,2]
[334716672,1723500646379,-500.0,0.00014709,2]
[334716673,1723500646388,-514.33,0.00014709,2]
[334716674,1723500646397,-506.81009319,0.00014709,2]
[334716675,1723500646406,-500.0,0.00014709,2]
[334716676,1723500646416,-500.0,0.00014709,2]
[334716677,1723500646425,-500.0,0.00014709,2]
[334716678,1723500646434,-500.0,0.00014709,2]
[334716679,1723500646443,-500.0,0.00014709,2]
[334716680,1723500646452,-500.0,0.00014709,2]
[334716681,1723500646471,-500.0,0.00014709,2]
[334716682,1723500646480,-500.0,0.00014709,2]
[334716683,1723500646489,-500.0,0.00014709,2]
[334716684,1723500646498,-500.0,0.00014709,2]
[334716685,1723500646508,-500.0,0.00014709,2]
[334716691,1723500646657,-500.0,0.00014709,2]
[334716692,1723500646666,-500.0,0.00014709,2]
[334716693,1723500646676,-500.0,0.00014709,2]
[334716694,1723500646685,-500.0,0.00014709,2]
[334716695,1723500646695,-500.0,0.00014709,2]
[334716696,1723500646704,-500.0,0.00014709,2]
[334716697,1723500646714,-500.0,0.00014709,2]
[334716698,1723500646725,-500.0,0.00014709,2]
[334716699,1723500646736,-688.08,0.00014709,2]
[334716700,1723500646746,-2419.67,0.00014709,2]
[334716701,1723500646758,-500.0,0.00014709,2]
[334716702,1723500646767,-500.0,0.00014709,2]
[334716703,1723500646776,-500.0,0.00014709,2]
[334716704,1723500646785,-500.0,0.00014709,2]
[334716705,1723500646794,-532.92,0.00014709,2]
[334716706,1723500646803,-323.33109887,0.00014709,2]
[334716707,1723500646813,-500.0,0.00014709,2]
[334716708,1723500646822,-595.26,0.00014709,2]
[334716709,1723500646843,-500.0,0.00014709,2]
[334716710,1723500646854,-513.34179872,0.00014709,2]
[334716711,1723500646864,-500.0,0.00014709,2]
[334716712,1723500646873,-401.64744829,0.00014709,2]
[334716713,1723500646883,-500.0,0.00014709,2]
[334716714,1723500646893,-500.0,0.00014709,2]
[334716715,1723500646904,-500.0,0.00014709,2]
[334716716,1723500646914,-260.022171,0.00014709,2]
[334716717,1723500646924,-260.022171,0.00014709,2]
[334716718,1723500646933,-388.73104,0.00014709,2]
[334716719,1723500646943,-388.73104,0.00014709,2]
[334716720,1723500646954,-151.0,0.00014709,2]
[334716721,1723500646963,-151.0,0.00014709,2]
[334716722,1723500646973,-180.122196,0.00014709,2]
[334716723,1723500646983,-180.122196,0.00014709,2]
[334716724,1723500646992,-371.445973,0.00014709,2]
[334716725,1723500647002,-371.445973,0.00014709,2]
[334716726,1723500647012,-151.0,0.00014709,2]
[334716727,1723500647022,-151.0,0.00014709,2]
[334716728,1723500647032,-500.0,0.00014781,2]
[334716729,1723500647042,-500.0,0.00014781,2]
[334716730,1723500647052,-896.83,0.00014781,2]
[334716731,1723500647061,-1060.71,0.00014781,2]
[334716732,1723500647071,-500.0,0.00014781,2]
[334716733,1723500647082,-500.0,0.00014781,2]
[334716734,1723500647096,-500.0,0.00014781,2]
[334716735,1723500647106,-601.2,0.00014781,2]
[334716736,1723500647115,-151.0,0.00014781,2]
[334716737,1723500647126,-151.0,0.00014781,2]
[334716738,1723500647136,-151.0,0.00014781,2]
[334716739,1723500647146,-151.0,0.00014782,2]
[334716740,1723500647156,-151.0,0.00014782,2]
[334716741,1723500647168,-229.357554,0.00014782,2]
[334716742,1723500647179,-151.0,0.00014791,2]
[334716743,1723500647188,-153.08066,0.00014792,2]
[334716744,1723500647198,-150.112233,0.000148,2]
[334716745,1723500647208,-150.112233,0.000148,2]
[334716746,1723500647218,-627.56128436,0.00014823,2]
[334716747,1723500647228,-153.0,0.000149,2]